Cogmind - Beta 14 @@@ ROGUE MODE // 2024.09.26 @ 20:49:54 Player: star Result: Destroyed by C3-IPK(R) with Subdweller Machine Gun Performance ------------- Evolutions (0) 0 Regions Visited (2) 400 Robots Destroyed (12) 60 Value Destroyed (404) 404 Prototype IDs (0) 0 Alien Tech Used (0) 0 Bonus (0) 0 TOTAL SCORE: 864 Bonus ------- None Cogmind --------- Core Integrity 0/250 Matter 300/300 Energy 76/100 System Corruption 0% Temperature Cool (0) Movement Core (200) Ox3 Location -10/Subcaves Parts ------- > --- POWER (1) -------- (None) > --- PROPULSION (2) --- (None) > --- UTILITY (2) ------ Disposable Heat Sink Small Storage Unit > --- WEAPON (2) ------- Subdweller Laser > --- INVENTORY (8) ---- High-capacity Storage Unit Small Laser Particle Gun Peak State ------------ > --- POWER ------------ (None) > --- PROPULSION ------- (None) > --- UTILITY ---------- Disposable Heat Sink Small Storage Unit > --- WEAPON ----------- Particle Gun Subdweller Machine Gun > --- INVENTORY -------- High-capacity Storage Unit Small Laser [Rating: 7] Favorites ----------- Power Ion Engine Engine Ion Engine Propulsion Wheel Wheel Wheel Utility Small Storage Unit Device Disposable Heat Sink Storage Small Storage Unit Weapon Subdweller Laser Energy Gun Subdweller Laser Ballistic Gun Assault Rifle Build | -11 -10 -10 ------- Run | Yrd Mat Sub Slots Evolved . | . . . Power . | . . . Propulsion . | . . . Utility . | . . . Weapon . | . . . Parts Attached 11 | 6 2 3 Power 1 | 1 . . Engine 1 | 1 . . Core . | . . . Reactor . | . . . Propulsion 2 | 2 . . Treads . | . . . Leg . | . . . Wheel 2 | 2 . . Hover . | . . . Flight . | . . . Utility 2 | 1 . 1 Device 1 | . . 1 Storage 1 | 1 . . Processor . | . . . Hackware . | . . . Protection . | . . . Artifact . | . . . Weapon 6 | 2 2 2 Energy Gun 4 | 1 2 1 Energy Cannon . | . . . Ballistic Gun 2 | 1 . 1 Ballistic Cannon . | . . . Launcher . | . . . Special Weapon . | . . . Impact Weapon . | . . . Slashing Weapon . | . . . Piercing Weapon . | . . . Special Melee Weapon . | . . . Unidentified Prototypes . | . . . Parts Lost 5 | . 3 2 Power 1 | . 1 . Propulsion 2 | . 1 1 Utility . | . . . Weapon 2 | . 1 1 Highest Loss Streak 3 | . 3 1 To Critical Strikes . | . . . Average Slot Usage (%) 56 | . 75 46 Engine 3 | . 10 . Wheel 7 | . 23 . Device 8 | . . 12 Storage 14 | . 14 14 Energy Gun 16 | . 17 15 Ballistic Gun 6 | . 9 4 Peak Build Rating 7 | 6 6 7 Average Rating 5 | 4 5 5 On Entrance 3 | . 6 5 Naked Turns . | . . . Heaviest Build 14 | 13 13 14 Greatest Support 20 | 20 20 10 Greatest Overweight (x) 4 | . . 4 Average Overweight (x) 1 | . . 2 Largest Inventory Capacity 8 | 8 8 8 Average Capacity 7 | 6 8 8 Most Carried 7 | . 2 7 Average Carried 3 | . . 4 Final Capacity 8 | 8 8 8 Final Carried 3 | . 2 3 Class Distribution -------------------- 100% | Mutant Dominant Class ---------------- Mutant | -10/Materials Mutant | -10/Subcaves Resources | -11 -10 -10 ----------- Run | Yrd Mat Sub Matter Collected 368 | 155 163 50 Remotely . | . . . Salvage Created 476 | . 225 251 Parts 24 | . 10 14 Haulers Intercepted . | . . . Recyclers Shooed . | . . . Parts Field Recycled . | . . . Retrieved Matter . | . . . Parts Self-Destructed 10 | . . 10 Prevented . | . . . Kills | -11 -10 -10 ------- Run | Yrd Mat Sub Combat Hostiles Destroyed 12 | . 5 7 Guns 12 | . 5 7 Classes Destroyed 5 | . 1 4 Swarmer 3 | . . 3 Grunt 5 | . 5 . Sentry 1 | . . 1 Artisan 1 | . . 1 Subdweller 3 | . . 3 Best Kill Streak 3 | . 2 3 Combat Bots Only 3 | . 2 3 Max Kills in Single Turn 2 | . 1 2 Gunslinging 1 | . . 1 Exploded . | . . . Melee . | . . . Uniques/NPCs Destroyed . | . . . Combat | -11 -10 -10 -------- Run | Yrd Mat Sub Hostile Shots Fired 54 | . 32 22 Missed 11 | . 6 5 Damage Taken 668 | . 356 312 Core 250 | . 84 166 Absorbed by Shields . | . . . Core Remaining (%) 100 | 100 . . Volleys Fired 42 | . 24 18 Largest 2 | . 2 2 Hottest 105 | . 60 105 Shots Fired 72 | . 40 32 Gun 72 | . 40 32 Cannon . | . . . Launcher . | . . . Special . | . . . Kinetic 27 | . 16 11 Thermal 45 | . 24 21 Explosive . | . . . Electromagnetic . | . . . Robot Hit Streak 15 | . 5 15 Robot Miss Streak 2 | . 1 2 Penetration Max . | . . . Secondary Targets 2 | . 1 1 Max Gunslinging Chain 1 | . 1 1 Shots Hit Robots 53 | . 28 25 Core Hits 24 | . 13 11 Critical Kills 1 | . . 1 Critical Parts Destroyed . | . . . Critical Strikes 2 | . . 2 Burn 1 | . . 1 Destroy 1 | . . 1 Melee Attacks . | . . . Impact . | . . . Slashing . | . . . Piercing . | . . . Sneak Attacks . | . . . Combat Hostiles . | . . . Follow-up Attacks . | . . . Damage Inflicted 751 | . 310 441 Guns 751 | . 310 441 Cannons . | . . . Explosions . | . . . Melee . | . . . Ramming . | . . . Kinetic 330 | . 141 189 Thermal 421 | . 169 252 Explosive . | . . . Electromagnetic . | . . . Impact . | . . . Slashing . | . . . Piercing . | . . . Highest Corruption . | . . . Average Corruption . | . . . Corruption Purged . | . . . Corruption Blocked . | . . . Overload Shots . | . . . Overflow Damage . | . . . Projectiles . | . . . Explosions . | . . . Melee . | . . . Knockbacks . | . . . Impact . | . . . Kinetic . | . . . Secondary . | . . . Self-Inflicted Damage . | . . . Shots . | . . . Rammed . | . . . Targets Rammed . | . . . Kicked . | . . . Crushed . | . . . Highest Temperature 100 | . 100 25 Average Temperature 47 | . 49 14 Received Heat Transfer 267 | . 198 69 Siege Activations . | . . . Robots Corrupted . | . . . Combat Hostiles . | . . . Parts Fried . | . . . Impact Corruptions . | . . . Robots Melted . | . . . Combat Hostiles . | . . . Parts Melted 1 | . . 1 Heat Transferred 994 | . 400 594 Parts Sabotaged . | . . . Parts Stolen . | . . . Parts Stripped . | . . . Power Chain Reactions . | . . . Alert | -11 -10 -10 ------- Run | Yrd Mat Sub Peak Influence 235 | . 235 . Initial . | . . . Average 133 | . 147 . Maximum Alert Level 1 | . 1 . Low Security (%) 59 | 100 55 . Level 1 40 | . 44 . Level 2 . | . . . Level 3 . | . . . Level 4 . | . . . Level 5 . | . . . High Security . | . . . Max Security . | . . . Squads Dispatched 1 | . 1 . Investigation . | . . . Extermination . | . . . Reinforcement 1 | . 1 . Assault . | . . . Garrison . | . . . Intercept . | . . . Searches Triggered . | . . . Construction Impeded . | . . . Haulers Reinforced . | . . . Active Scanning Responses . | . . . Cargo Convoy Interrupts . | . . . Stealth | -11 -10 -10 --------- Run | Yrd Mat Sub Distress Signals 3 | . 3 . Communications Jammed . | . . . Distress Signals . | . . . Times Spotted 24 | . 15 9 Peak Tracking Total 5 | . 5 3 Tactical Retreats 4 | . 4 . Traps | -11 -10 -10 ------- Run | Yrd Mat Sub Traps Triggered . | . . . Indirectly . | . . . Trap Hack Attempts . | . . . Triggered . | . . . Disarmed . | . . . Reprogrammed . | . . . Reused . | . . . Traps Extracted . | . . . Installed . | . . . Triggered . | . . . Machines | -11 -10 -10 ---------- Run | Yrd Mat Sub Machines Disabled . | . . . Max in Single Turn . | . . . Machines Repaired . | . . . Machines Dismantled . | . . . Machines Sabotaged . | . . . Overloaded Fab Kills . | . . . Hacking | -11 -10 -10 --------- Run | Yrd Mat Sub Machines Accessed 3 | . 1 2 Terminals 1 | . 1 . Fabricators . | . . . Repair Stations . | . . . Recycling Units . | . . . Scanalyzers . | . . . Garrison Access . | . . . Total Hacks 4 | . 1 3 Successful 3 | . . 3 Failed 1 | . 1 . Catastrophic 1 | . 1 . Database Lockouts . | . . . Manual 1 | . 1 . Terminals 1 | . 1 . Fabricators . | . . . Repair Stations . | . . . Recycling Units . | . . . Scanalyzers . | . . . Garrison Access . | . . . Terminal Hacks 3 | . . 3 Record 1 | . . 1 Open Door 1 | . . 1 Release Object 1 | . . 1 Fabricator Hacks . | . . . Repair Station Hacks . | . . . Recycling Unit Hacks . | . . . Scanalyzer . | . . . Garrison Access Hacks . | . . . Unauthorized Hacks . | . . . Terminals . | . . . Fabricators . | . . . Repair Stations . | . . . Recycling Units . | . . . Scanalyzers . | . . . Garrison Access . | . . . Data Cores Recovered . | . . . Used . | . . . Hacking Detections 1 | . 1 . Full Trace Events . | . . . Feedback Events . | . . . Feedback Blocked . | . . . Robot Schematics Acquired . | . . . Robots Built . | . . . Authchips . | . . . Time . | . . . Total Robot Build Rating . | . . . Part Schematics Acquired . | . . . Parts Built . | . . . Authchips . | . . . Time . | . . . Total Part Build Rating . | . . . Parts Repaired . | . . . Time . | . . . Parts Recycled . | . . . Recycled Matter . | . . . Retrieved Matter . | . . . Retrieved Components . | . . . Parts Scanalyzed . | . . . Part Schematics Acquired . | . . . Parts Damaged . | . . . Bothacking | -11 -10 -10 ------------ Run | Yrd Mat Sub Used RIF Installer . | . . . Robots Hacked . | . . . Non-combat . | . . . Combat . | . . . Robot Hacks Applied . | . . . Relay Couplers Released . | . . . Fabnet Peak Effective % . | . . . Robots Rewired . | . . . Allies Hacked . | . . . Hacks Repelled . | . . . Allies | -11 -10 -10 -------- Run | Yrd Mat Sub Total Allies . | . . . Largest Group . | . . . Highest-Rated Group . | . . . Highest-Rated Ally . | . . . Total Orders . | . . . Ally Attacks . | . . . Total Damage . | . . . Kills . | . . . Allies Corrupted . | . . . Allies Melted . | . . . Intel | -11 -10 -10 ------- Run | Yrd Mat Sub Robot Analysis Total . | . . . Derelict Logs Recovered 1 | . . 1 Drone Launches . | . . . Drone Recoveries . | . . . Exploration | -11 -10 -10 ------------- Run | Yrd Mat Sub Turns Passed 1276 | 41 399 836 Spaces Moved 612 | 42 193 377 Core 365 | 3 . 362 Treads . | . . . Legs . | . . . Wheels 247 | 39 193 15 Hover . | . . . Flight . | . . . Fastest Speed 50 | 50 80 80 Average Speed 154 | 77 80 200 Slowest Speed 250 | 80 80 250 Overloaded Moves . | . . . Propulsion Burnouts . | . . . Robots Hopped . | . . . Cave-ins Triggered . | . . . Exploration Rate (%) 24 | 3 49 20 Regions Visited 2 Branch Regions 1 Pre-discovered Areas . | . . . Known Exits Taken . | . . . Unknown Exits Taken 2 | 1 1 . Scrap Searched . | . . . Spaces Dug . | . . . Terrain Destroyed . | . . . Melee . | . . . Projectile . | . . . AOE . | . . . Terrain Rammed . | . . . Walls Destroyed . | . . . Machines Disabled . | . . . Actions | -11 -10 -10 --------- Run | Yrd Mat Sub Total 868 | 47 396 425 Wait 196 | . 177 19 Move 610 | 41 192 377 Hop . | . . . Pick Up 5 | . 1 4 Fast Attach 8 | 6 1 1 Attach . | . . . Detach . | . . . Swap 3 | . 1 2 Drop 4 | . . 4 Fire 42 | . 24 18 Melee . | . . . Ram . | . . . Kick . | . . . Crush . | . . . Escape Stasis . | . . . Rewire . | . . . Trap . | . . . Miscellaneous . | . . . Route ------- -11/Scrapyard -10/Materials (discovered 3 exits: [*Mat x2] / *Sub) -10/Subcaves History --------- Turn | Location | Event 12 | -11/Scrapyard | Discovered new exit (range 16) 42 | -11/Scrapyard | Entered Materials 93 | -10/Materials | Discovered new exit (range 8) 201 | -10/Materials | Discovered new exit (range 5) 312 | -10/Materials | Build established: Mutant 364 | -10/Materials | Lost 3 parts (1p1n1w) 422 | -10/Materials | Discovered new exit (range 9) 441 | -10/Materials | Entered Subcaves 577 | -10/Subcaves | Core integrity fell below 50% 657 | -10/Subcaves | Ambushed by angry Subdweller bent on revenge 846 | -10/Subcaves | Learned Materials trap positions 1248 | -10/Subcaves | Core integrity fell below 20% 1277 | -10/Subcaves | Destroyed by C3-IPK(R) with Subdweller Machine Gun Last Messages --------------- Sealed Heavy Doors opened. 00872_ Connecting with SUBCON Basin Controls... >>Record "Subatomizer Containment" Subatomizers are really quite dangerous, especially when stimulated during the collection process in preparation for SEP insertion. Secure containment is priority number one! Although mostly just a persistent nuisance in their natural Subcaves environment where a certain balance has been achieved, there is a high probability that sudden introduction into previously unexposed areas could cause more extreme side effects. Take all precautions to prevent this from happening. >>Release Inventory Accessing inventory controls... Collection purity confirmed 100%... Ejecting SUBCON Basin... Delivery behind schedule, handle with care! 01166_ Acquired Scrap Shield Fragment. 01264_ Dropped Scrap Shield Fragment. 01274_ C3-IPK(R) affixes Scrap Shield Fragment to Scrap Shield. Map ----- +----------------------------------------------------+ | ??????????????????# ## ## # ##??????? | | ??????????????????## ### % % #??????? | | ???????????????????## ??# " ## ##??????? | | ????????????????????###??## #"" #?##???????? | | ???????????????????????##### #####"""#??????????? | | ???????????????????????# " ##### " #??????????? | | ??????????????????????## " # #??????????? | | ?????????????????????## "" #??????????? | | ?????????????????????# " # ##??????????? | | ????????????????????#" "####"" ##?# ##??????????? | | ????????????????????#""#???##" #??# ##?????????? | | ????????????????????##?????### #### ###???????? | | ??????????????????????????## ## #???????? | | ??????????????????????###?# ##??????? | | ?????????????????????##"### #??????? | | ?????????????????????#"""### #??????? | | ?????????????????????#"""### #??????? | | ????????????????????## % ##??????? | | ????????????????????# ## ## ##??????? | | ????????????????????# ###### ### ##?????? | | ????????????????????########?## ####### #?????? | | ??????????????????????## #### ####?# ##?????? | | ?????????????????????## ## ##### ##?????? | | ?????????????????????# #### #?????? | | ?????????????????????# R ## ## ##?????? | | ????????????????????##&R&@### % ##?????? | | ???????????????????## ####?# ##%% #?????? | | ?????????????????### ##????# # ####?????? | | ?????????????????# #?????## ## ###????????? | | ?????????????????# #??????## ## ##?????????? | | ?????????????????# #???????# # #?##??????? | | ?????????????????### #??????? # # #??????? | | ??????????????????# #??????# ### # #??????? | | ??????????????????# #?????? ## #??????? | | ??????????????????# #????? ### #??????? | | ?????????????????# #???? #?# #??????? | | ????????????????# #??? ? ##?# #??????? | | ????????????????## ????#???# #??????? | | ?????????????????# ## ???????#### #??????? | | ?????????????????##?# ?????????? #??????? | | ????????????????????# ????????? #?????? | | ????????????????????? ## ???????? #?????? | | ????????????????????? ##? ??????? ##?????? | | ????????????????????? #??? ??????## #??????? | | ?????????????????????##??? ???????? ##??????? | | ???????????????????????????## ?????????? #???????? | | ????????????????????????????????????????? ???????? | | ????????????????????????????????????????? ???????? | | ?????????????????????????????????????????????????? | | ?????????????????????????????????????????????????? | +----------------------------------------------------+ Best States ------------- Heat Dissipation 25 Coolant Potential 50 Energy Generation 10 Energy Capacity 250 Matter Stores 300 Matter Capacity 300 Sight Range 16 Terrain Scan Density 10 Evasion (%) 44 Item Schematics ----------------- None Robot Schematics ------------------ None Fabricated ------------ Nothing Alien Tech Used ----------------- None Achievements -------------- None Challenges ------------ None Game ------ Seed SurveybotGatlingMembrane Manual? 0 Play Time 00:07:10 Cumulative 101.7 hours Start 2024.09.26 @ 17:15:18 End 2024.09.26 @ 20:49:54 Sessions 1 Manual Loads 0 Difficulty Rogue Special Mode None Game No. 176 Rogue 176 Adventurer 0 Explorer 0 Win Type - Total 0 Types 0/0/0/0/0/0/0/0/0 Lore% 49 Gallery% 52 Achievement% 41 Wizard Run 0 Options --------- Layout 0 ASCII 0 Keyboard 1 Movement Numpad Keybinds 0 Fullscreen 2 Font 18/SmallcapsGlow Map View 76x50 Zoom Use 0% Tactical HUD 1 Map Filters NONE Filters NONE Steam 1 RUN: 344510dd-3ca3-47fe-a279-b61db3427190